bitfinex/quotes_ETHUSD_20250217
["timestamp","ask_amount","ask_price","bid_price","bid_amount"]
[1739794890090,3.61134,2769.1,2768.6,4.17604443]
[1739794890477,3.61134,2769.1,2768.6,0.56414443]
[1739794890681,3.61147,2769.0,2768.6,0.56414443]
[1739794891071,3.61175,2768.8,2768.6,0.0734113]
[1739794891370,3.6118,2768.7,2768.6,0.0734113]
[1739794891970,3.61156,2768.9,2768.6,0.0734113]
[1739794892198,3.61151,2769.0,2768.6,0.0734113]
[1739794892702,7.22303,2769.0,2768.6,0.0734113]
[1739794892889,3.61167,2768.8,2768.6,0.0734113]
[1739794893205,3.6118,2768.7,2768.6,0.0734113]
[1739794893403,1.1343,2769.4,2768.6,0.0734113]
[1739794893702,3.61127,2769.2,2768.7,4.78108]
[1739794893904,3.61127,2769.2,2768.7,4.85430828]
[1739794894073,3.61129,2769.1,2768.7,4.85430828]
[1739794894276,3.61145,2769.0,2768.7,1.24252828]
[1739794894512,3.61155,2768.9,2768.7,1.24252828]
[1739794895346,3.61167,2768.8,2768.7,0.07322828]
[1739794895544,3.61155,2768.9,2768.7,0.07322828]
[1739794895712,3.61155,2768.9,2768.5,3.61204]
[1739794895908,3.61155,2768.9,2768.6,0.91417312]
[1739794896110,3.6115,2769.0,2768.6,0.91417312]
[1739794896339,3.61157,2768.9,2768.6,0.91417312]
[1739794896509,3.61145,2769.0,2768.6,0.91417312]
[1739794897147,3.61124,2769.2,2768.6,0.91417312]
[1739794897348,3.61124,2769.2,2768.6,4.52603312]
[1739794897551,0.1514834,2769.5,2768.8,1.1845]
[1739794897845,3.61123,2769.2,2768.8,1.1845]
[1739794898049,3.61123,2769.2,2768.9,0.07327703]
[1739794898616,0.1514834,2769.5,2768.9,0.07327703]
[1739794898915,3.61099,2769.4,2768.9,3.68480703]
[1739794899145,3.61099,2769.4,2769.0,0.4869307]
[1739794899320,3.61099,2769.4,2769.1,0.07326097]
[1739794899860,3.61089,2769.4,2769.1,0.07326097]
[1739794900021,3.61103,2769.3,2769.1,0.07326097]
[1739794901257,0.1514834,2769.5,2769.1,0.07326097]
[1739794901458,0.1514834,2769.5,2769.2,4.88719034]
[1739794901623,0.1514834,2769.5,2769.3,3.61101]
[1739794901961,0.1514834,2769.5,2769.3,3.68402812]
[1739794902163,0.1514834,2769.5,2769.3,0.07301812]
[1739794902582,0.1514834,2769.5,2769.2,1.24]
[1739794902730,0.1514834,2769.5,2769.4,0.07253711]
[1739794903085,0.1514834,2769.5,2769.4,4.92242711]
[1739794904273,0.1514834,2769.5,2769.4,1.31153711]
[1739794906395,0.1514834,2769.5,2769.4,4.92242711]
[1739794906683,0.1514834,2769.5,2769.4,5.47242711]
[1739794906829,0.1514834,2769.5,2769.4,7.27037481]
[1739794911058,0.1514834,2769.5,2769.4,7.30647634]
[1739794911652,0.1514834,2769.5,2769.4,7.27037481]
[1739794911907,0.1514834,2769.5,2769.4,7.3064763]
[1739794912048,0.1514834,2769.5,2769.4,7.27037481]
[1739794913843,0.1514834,2769.5,2769.4,3.10948481]
[1739794914043,0.1514834,2769.5,2769.4,1.87048481]
[1739794914249,0.1514834,2769.5,2769.4,5.48137481]
[1739794914986,0.1514834,2769.5,2769.4,6.03137481]
[1739794915291,0.1514834,2769.5,2769.4,7.25087481]
[1739794916089,0.1514834,2769.5,2769.4,10.25087481]
[1739794918285,0.1514834,2769.5,2769.4,24.45087481]
[1739794919052,0.1514834,2769.5,2769.4,24.45837481]
[1739794919253,0.00797733,2770.0,2769.9,7.16023]
[1739794919562,7.33e-06,2770.0,2769.9,12.0914255]
[1739794919762,2.09576387,2772.1,2771.3,3.60831]
[1739794919976,2.09576387,2772.1,2771.4,0.0713858]
[1739794919977,3.60772,2771.9,2771.4,0.0713858]
[1739794920182,3.60815,2771.5,2771.4,0.0713858]
[1739794920690,3.60942,2770.6,2770.3,8.87]
[1739794920882,1.1829,2770.7,2769.6,13.4800103]
[1739794921071,3.6094,2770.6,2769.9,3.3643103]
[1739794921390,3.60908,2770.8,2770.3,0.55]
[1739794921577,3.73027958,2771.2,2770.6,3.60928]
[1739794921578,3.60859,2771.2,2770.6,3.60928]
[1739794921888,3.60862,2771.2,2770.7,0.55]
[1739794922049,1.1829,2771.3,2770.7,4.15907]
[1739794923075,3.60858,2771.2,2770.7,0.55]
[1739794923388,3.60806,2771.6,2771.1,1.1473]
[1739794924254,3.60781,2771.8,2771.2,4.15846]
[1739794924678,3.60781,2771.8,2771.2,9.42]
[1739794924878,3.6079,2771.7,2771.2,9.42]
[1739794925318,3.60781,2771.8,2771.2,9.42]
[1739794925736,3.60781,2771.8,2771.2,12.47846]
[1739794925882,3.60765,2771.9,2771.3,4.15832]
[1739794926420,3.60777,2771.8,2771.3,4.15832]
[1739794926618,3.60756,2772.0,2771.4,3.60827]
[1739794927084,3.60756,2772.0,2771.3,6.27317303]
[1739794927085,3.60764,2771.9,2771.3,6.27317303]
[1739794927285,3.60756,2772.0,2771.3,6.27317303]
[1739794927622,7.21516,2772.0,2771.4,3.60821]
[1739794927787,3.60764,2771.9,2771.3,9.88149303]
[1739794928121,3.60764,2771.9,2771.3,2.66485303]
[1739794928427,3.60764,2771.9,2771.4,3.6082]
[1739794928718,3.60764,2771.9,2771.4,14.3533533]
[1739794929119,3.60753,2772.0,2771.5,0.07049747]
[1739794929321,3.60739,2772.1,2771.5,0.07049747]
[1739794929519,3.60764,2771.9,2771.5,0.07049747]
[1739794929725,3.60764,2771.9,2771.5,8.94049747]
[1739794930027,0.1514834,2772.2,2772.0,0.55]
[1739794930330,3.60763,2771.9,2771.8,8.87]
[1739794930488,6.7737234,2772.2,2772.1,9.39e-06]
[1739794930691,3.60785,2771.8,2771.1,1.1959]
[1739794930917,3.60841,2771.3,2771.1,1.1959]
[1739794931228,3.60817,2771.5,2771.2,0.06298499]
[1739794931531,3.60802,2771.6,2771.2,0.06298499]
[1739794931701,3.60836,2771.4,2771.2,0.06298499]
[1739794931907,4.76028,2771.7,2771.2,0.06298499]
[1739794932139,1.989098,2771.7,2771.2,0.06298499]
[1739794932464,3.60856,2771.2,2770.8,1.1755]
[1739794933166,3.60893,2771.0,2770.5,10.1078]
[1739794933351,3.60861,2771.2,2770.6,3.60931]
[1739794933528,3.60828,2771.4,2770.7,3.3643103]
[1739794933733,3.60828,2771.4,2770.8,3.60896]
[1739794933972,7.21666,2771.4,2770.8,3.60896]
[1739794934153,1.256,2771.5,2771.0,3.60878]
[1739794934333,3.60816,2771.5,2771.0,3.60878]
[1739794934534,3.60797,2771.7,2771.1,1.2378]
[1739794934844,3.60804,2771.6,2771.1,1.2378]
[1739794935245,3.60804,2771.6,2771.1,4.84639]
[1739794935457,3.6078,2771.8,2771.2,4.69801833]
[1739794935860,3.60755,2772.0,2771.4,3.60827]
[1739794936368,3.60765,2771.9,2771.4,3.60827]
[1739794936867,3.6075,2772.0,2771.1,1.2378]
[1739794937072,7.21638,2771.5,2771.1,1.2378]
[1739794937266,3.60851,2771.3,2770.7,17.0592203]
[1739794937482,3.60868,2771.1,2770.7,13.4501103]
[1739794937690,3.6082,2771.5,2770.7,4.5801103]
[1739794938202,3.60763,2771.9,2771.0,6.9731003]
[1739794938491,3.60763,2771.9,2771.3,3.6083]
[1739794938787,3.6075,2772.0,2771.4,3.66577939]
[1739794939372,3.6075,2772.0,2771.4,3.66571939]
[1739794939976,3.60753,2772.0,2771.5,3.60808]
[1739794940177,3.6076,2772.0,2771.6,0.05751336]
[1739794940377,3.60818,2771.5,2771.1,10.0803]
[1739794940579,1.1764,2771.7,2771.2,0.05754542]
[1739794940889,3.60824,2771.5,2771.2,0.05754542]
[1739794941094,3.60803,2771.6,2771.2,0.05754542]
[1739794941396,3.60798,2771.7,2771.2,0.05754542]
[1739794941688,3.60811,2771.6,2771.2,0.05754542]
[1739794942264,3.60819,2771.5,2771.2,0.05754542]
[1739794942464,3.969009,2771.5,2771.2,0.05754542]
[1739794942669,3.60841,2771.3,2771.2,0.05754542]
[1739794943256,3.60841,2771.3,2770.8,8.1903403]
[1739794943593,3.60832,2771.4,2770.9,3.60891]
[1739794943790,7.2167,2771.4,2771.0,0.0555211]
[1739794944014,3.60849,2771.3,2770.8,4.5813103]
[1739794944157,3.60849,2771.3,2771.1,0.05551308]
[1739794944358,3.60843,2771.3,2770.8,10.25731433]
[1739794944695,3.60832,2771.4,2770.9,0.05559373]
[1739794944889,7.21672,2771.4,2770.9,0.05559373]
[1739794945099,3.60843,2771.3,2770.9,0.05559373]
[1739794945391,3.60863,2771.2,2770.9,0.05559373]
[1739794945783,3.60872,2771.1,2770.9,0.05559373]
[1739794946597,3.60854,2771.2,2770.9,0.05559373]
[1739794946780,3.60842,2771.3,2770.9,0.05559373]
[1739794946984,3.60863,2771.2,2770.9,0.05559373]
[1739794947770,3.60868,2771.1,2770.9,0.05559373]
[1739794948180,3.60815,2771.5,2770.9,0.05559373]
[1739794948397,3.60815,2771.5,2771.0,3.60874]
[1739794948764,3.60815,2771.5,2771.1,0.05573917]
[1739794949094,3.60815,2771.5,2771.0,3.60876]
[1739794949272,3.60828,2771.4,2771.2,0.05573116]
[1739794949458,3.60828,2771.4,2771.1,0.05573917]
[1739794949653,3.60828,2771.4,2771.3,0.05572314]
[1739794949879,3.60836,2771.4,2771.2,0.05573116]
[1739794950083,3.60836,2771.4,2771.3,0.05572314]
[1739794950473,3.60836,2771.4,2770.9,4.15883]
[1739794950659,3.60836,2771.4,2771.3,0.05572314]
[1739794951072,3.60815,2771.5,2770.9,4.15883]
[1739794951275,3.60802,2771.6,2771.3,0.05572314]
[1739794951481,1.2192,2771.9,2771.0,2.88111403]
[1739794951482,1.2192,2771.9,2771.2,3.60847]
[1739794951681,3.60815,2771.5,2771.4,0.05571512]
[1739794951886,3.60815,2771.5,2771.0,2.88111403]
[1739794951887,3.60828,2771.4,2771.3,0.05572314]
[1739794952109,3.60796,2771.7,2771.4,0.0556376]
[1739794952409,3.60828,2771.4,2771.3,0.05564561]
[1739794952712,3.60864,2771.2,2770.7,4.77692]
[1739794952873,3.60861,2771.2,2770.7,4.77692]
[1739794953306,3.60843,2771.3,2770.8,6.9733103]
[1739794953307,3.60842,2771.3,2770.8,6.9733103]
[1739794953507,3.60856,2771.2,2770.8,6.9733103]
[1739794953713,3.60856,2771.2,2770.8,8.67442133]
[1739794953918,3.60831,2771.4,2770.8,8.67442133]
[1739794954211,3.60859,2771.2,2770.8,5.06542133]
[1739794954409,3.60875,2771.1,2770.7,1.1678]
[1739794954601,7.21749,2771.1,2770.7,1.1678]
[1739794954796,7.2175,2771.1,2770.7,1.1678]
[1739794955014,3.60874,2771.1,2770.7,1.1678]
[1739794955317,3.60874,2771.1,2770.7,2.43687516]
[1739794955690,7.21749,2771.1,2770.7,2.43687516]
[1739794956013,3.60874,2771.1,2770.7,2.43687516]
[1739794958312,3.60857,2771.2,2770.7,6.04601516]
[1739794958492,7.21723,2771.2,2770.7,6.04601516]
[1739794958882,3.60874,2771.1,2770.7,2.43687516]
[1739794959105,3.60874,2771.1,2770.8,0.0556857]
[1739794959307,1.657916,2771.7,2770.7,4.77698]
[1739794959517,7.21699,2771.3,2770.8,3.60899]
[1739794959776,3.60855,2771.2,2770.8,4.50336315]
[1739794960210,3.6084,2771.4,2770.9,3.60883]
[1739794960395,3.60842,2771.3,2770.8,4.50336315]
[1739794960587,3.60849,2771.3,2771.0,0.05576011]
[1739794960787,3.60849,2771.3,2770.8,3.60899]
[1739794961011,3.60849,2771.3,2771.1,0.0557521]
[1739794961315,3.60854,2771.2,2770.7,4.77693]
[1739794961625,3.60849,2771.3,2770.7,2.34284603]
[1739794961831,3.60854,2771.2,2770.7,5.95201603]
[1739794962893,3.60842,2771.3,2770.8,3.60897]
[1739794963289,3.60856,2771.2,2770.8,3.60897]
[1739794963696,3.60836,2771.4,2770.9,3.60887]
[1739794964318,3.6083,2771.4,2771.0,3.60875]
[1739794965122,3.60825,2771.5,2771.1,4.78663]
[1739794965738,3.60799,2771.7,2771.1,8.1509003]
[1739794965945,3.60799,2771.7,2771.2,3.60854]
[1739794966140,3.60799,2771.7,2771.2,3.60847]
[1739794966342,3.60785,2771.8,2771.4,3.3643103]
[1739794966505,3.60785,2771.8,2771.5,1.1323]
[1739794966829,3.60789,2771.7,2771.5,1.1323]
[1739794967397,3.60789,2771.7,2771.3,3.60841]
[1739794967704,3.60787,2771.8,2771.4,0.483981]
[1739794968289,3.60787,2771.8,2771.4,4.092241]
[1739794968489,3.60787,2771.8,2771.4,3.8482913]
[1739794969640,1.3995834,2772.2,2771.2,1.2314]
[1739794969930,3.60777,2771.8,2771.3,3.60832]
[1739794970090,3.60777,2771.8,2771.3,7.21665]
[1739794970532,3.60777,2771.8,2771.3,3.60832]
[1739794970693,7.21563,2771.8,2771.3,3.60832]
[1739794971033,3.60777,2771.8,2771.4,0.82040303]
[1739794972531,3.60737,2772.1,2771.5,3.60815]
[1739794973235,3.60763,2771.9,2771.5,3.60815]
[1739794973465,3.60763,2771.9,2771.4,0.82040303]
[1739794973824,1.3995834,2772.2,2771.5,0.05521615]
[1739794974161,3.60763,2771.9,2771.5,0.05521615]
[1739794974323,3.60789,2771.7,2771.5,0.05521615]
[1739794974722,3.60789,2771.7,2771.3,3.60835]
[1739794974963,1.1524,2771.7,2771.0,4.1626]
[1739794975115,3.60828,2771.4,2771.0,4.1626]
[1739794975317,3.60828,2771.4,2771.1,0.05524822]
[1739794975628,3.60815,2771.5,2771.1,0.05524822]
[1739794975843,3.60829,2771.4,2771.1,0.05524822]
[1739794976042,3.6084,2771.4,2771.1,0.05524822]
[1739794976362,3.60815,2771.5,2771.1,0.05524822]
[1739794976527,7.2164,2771.5,2771.1,0.05524822]
[1739794976727,3.60848,2771.3,2771.1,0.05524822]
[1739794977114,3.60834,2771.4,2771.1,0.05524822]
[1739794977351,1.1537,2771.9,2771.2,3.3643103]
[1739794977643,3.60776,2771.8,2771.3,4.85685864]
[1739794977846,3.60757,2772.0,2771.5,3.60812]
[1739794978013,3.60757,2772.0,2771.6,1.2417]
[1739794978211,0.1514834,2772.2,2771.7,0.05520658]
[1739794978560,3.60752,2772.0,2771.7,0.05520658]
[1739794978941,3.7588134,2772.2,2771.7,0.05520658]
[1739794978942,3.60746,2772.1,2771.7,0.05520658]
[1739794979147,0.1514834,2772.2,2771.7,0.05520658]
[1739794979347,3.60756,2772.0,2771.7,0.05520658]
[1739794979858,0.1514834,2772.2,2771.7,3.66307658]
[1739794980019,3.60739,2772.1,2771.7,0.05520658]
[1739794980452,3.60737,2772.1,2771.7,0.05520658]
[1739794980757,3.60771,2771.9,2771.7,0.05520658]
[1739794980924,3.60753,2772.0,2771.7,0.05520658]
[1739794981114,3.60776,2771.9,2771.4,12.47824]
[1739794981552,0.1514834,2772.2,2771.4,8.87]
[1739794981855,3.60744,2772.1,2771.5,7.27135448]
[1739794982057,0.1514834,2772.2,2771.5,5.39062993]
[1739794982230,3.60747,2772.1,2771.6,4.46326621]
[1739794982560,0.1514834,2772.2,2771.6,0.8192]
[1739794982716,0.1514834,2772.2,2772.0,3.60739]
[1739794982917,0.1514834,2772.2,2772.1,5.18414089]
[1739794983144,0.1514834,2772.2,2772.1,5.23912019]
[1739794983346,0.1514834,2772.2,2772.1,5.7530528]
[1739794983545,0.1514834,2772.2,2772.1,9.1173631]
[1739794984065,0.1514834,2772.2,2772.1,12.1173631]
[1739794984261,0.1514834,2772.2,2772.1,11.5673631]
[1739794984439,0.1514834,2772.2,2772.1,20.4373631]
[1739794986185,0.1514834,2772.2,2772.1,14.09459353]
[1739794986385,0.1514834,2772.2,2772.1,1.13878123]
[1739794986764,0.1514834,2772.2,2772.1,4.74615123]
[1739794987383,0.1514834,2772.2,2772.1,8.14653]
[1739794987705,0.1514834,2772.2,2772.1,7.8458611]
[1739794988352,0.1514834,2772.2,2772.1,10.8458611]
[1739794988669,0.1514834,2772.2,2772.1,12.29119621]
[1739794991094,0.1514834,2772.2,2772.1,21.16119621]
[1739794996679,0.1514834,2772.2,2772.1,18.16119621]
[1739794996918,0.1514834,2772.2,2772.1,1.50031591]
[1739794997103,0.1514834,2772.2,2772.1,0.0549808]
[1739794997417,0.1514834,2772.2,2772.0,3.6075]
[1739794997618,0.1514834,2772.2,2772.1,6.9716803]
[1739794997791,0.1514834,2772.2,2772.1,10.77159476]
[1739795000039,0.1514834,2772.2,2772.1,19.64159476]
[1739795000213,0.1514834,2772.2,2772.1,21.96650424]
[1739795001007,0.1514834,2772.2,2772.1,18.60219394]
[1739795003644,3.4e-06,2772.2,2772.1,19.16719394]
[1739795003937,0.005,2773.4,2773.3,3.60581]
[1739795004141,0.005,2773.4,2773.3,4.403993]
[1739795004338,0.005,2773.4,2773.3,4.45350813]
[1739795004517,0.005,2773.4,2773.3,0.84769813]
[1739795004925,0.005,2773.4,2773.3,0.04951513]
[1739795005431,0.005,2773.4,2773.1,3.60601]
[1739795005740,0.005,2773.4,2773.2,0.04952314]
[1739795006249,3.61074,2773.4,2772.9,3.6062]
[1739795006448,4.37577,2773.1,2773.0,0.04953915]
[1739795006608,4.37577,2773.1,2772.6,16.08327]
[1739795006808,4.37577,2773.1,2772.7,1.608327]
[1739795007049,0.7697,2773.1,2772.7,0.04956317]
[1739795007281,0.005,2773.4,2772.7,0.04956317]
[1739795007282,0.7614,2773.4,2772.7,3.41387347]
[1739795007470,4.36715,2773.4,2772.8,3.60646]
[1739795007672,4.36715,2773.4,2772.7,7.02044347]
[1739795007859,3.60589,2773.3,2772.9,0.04916006]
[1739795008059,3.60585,2773.3,2772.9,0.04916006]
[1739795008265,3.60593,2773.3,2772.9,0.61568551]
[1739795008465,3.60592,2773.3,2772.9,0.61568551]
[1739795008646,3.60581,2773.3,2772.9,0.61568551]
[1739795009186,3.60587,2773.3,2772.9,0.61568551]
[1739795009580,3.60594,2773.2,2772.9,0.61568551]
[1739795009744,0.8242,2773.0,2772.9,0.04916006]
[1739795010169,0.8242,2773.0,2772.7,3.0]
[1739795010381,4.43047,2773.0,2772.9,0.04916651]
[1739795010584,4.43047,2773.0,2772.8,0.04917452]
[1739795010765,4.43047,2773.0,2772.9,0.04916651]
[1739795011149,0.8242,2773.0,2772.5,3.0]
[1739795011349,3.60634,2772.9,2772.5,3.99713803]
[1739795011550,0.8242,2773.0,2772.6,3.6067]
[1739795011749,4.43049,2773.0,2772.5,3.99713803]
[1739795012081,3.60636,2772.9,2772.5,3.0]
[1739795012381,4.40579,2772.5,2772.1,2.32490948]
[1739795012572,3.607,2772.4,2772.0,3.60742]
[1739795012767,3.607,2772.4,2771.9,6.9719303]
[1739795012967,3.60731,2772.2,2771.7,3.60788]
[1739795013169,0.7989,2772.3,2771.6,3.60802]
[1739795013351,3.60724,2772.2,2771.6,3.60802]
[1739795013552,3.60724,2772.2,2771.7,3.60789]
[1739795013750,0.7989,2772.3,2771.6,3.0]
[1739795013947,0.7989,2772.3,2771.7,4.72405285]
[1739795014181,0.7989,2772.6,2772.1,3.60731]
[1739795014382,4.40569,2772.6,2772.1,3.60735]
[1739795015307,4.40573,2772.6,2772.1,3.60729]
[1739795015511,3.60689,2772.5,2772.0,3.60746]
[1739795015916,4.40574,2772.6,2772.1,3.60729]
[1739795016079,0.7989,2772.6,2772.0,0.800511]
[1739795016279,0.7989,2772.6,2771.7,3.60781]
[1739795016619,0.7989,2772.2,2771.8,3.60772]
[1739795016774,0.7989,2772.2,2771.7,7.21564]
[1739795016976,0.7921,2772.4,2771.7,3.60781]
[1739795017181,3.60715,2772.3,2771.6,6.3643103]
[1739795017502,0.7921,2772.4,2771.7,0.79967481]
[1739795017705,0.7921,2772.6,2772.0,3.0]
[1739795018009,0.7921,2772.6,2772.3,3.60711]
[1739795018538,0.7921,2772.6,2772.2,3.60718]
[1739795018693,4.39889,2772.6,2772.0,3.6074]
[1739795018903,3.60693,2772.5,2772.3,0.04268803]
[1739795019140,0.7921,2772.6,2772.0,3.6074]
[1739795019298,0.7921,2772.6,2772.4,0.04268002]
[1739795019621,0.7921,2772.6,2772.2,3.60721]
[1739795019833,0.7921,2772.6,2772.1,3.60733]
[1739795019834,4.39882,2772.6,2772.1,3.60733]
[1739795020133,4.39882,2772.6,2772.3,3.60711]
[1739795020134,0.7921,2772.6,2772.3,3.60711]
[1739795020320,0.7921,2772.6,2772.3,3.6071]
[1739795020523,0.7921,2772.6,2772.4,0.04268002]
[1739795021620,3.60649,2772.8,2772.4,0.04268002]
[1739795021839,0.7774,2772.8,2772.5,3.60674]
[1739795022134,0.7774,2772.8,2772.6,0.04265754]
[1739795022730,0.7774,2772.8,2772.3,4.4090926]
[1739795022937,0.7774,2772.8,2772.7,0.04264954]
[1739795023250,0.7774,2772.8,2772.3,4.4090926]
[1739795023430,4.3808,2773.2,2772.7,3.64921954]
[1739795023609,3.60608,2773.1,2772.6,3.60671]
[1739795023816,3.60608,2773.1,2772.4,4.12415926]
[1739795023817,3.6062,2773.0,2772.8,0.04264153]
[1739795024132,3.6062,2773.0,2772.9,0.04272384]
[1739795024941,3.6062,2773.0,2772.5,3.60681]
[1739795025550,3.60633,2772.9,2772.5,3.60681]
[1739795026128,0.7645,2772.8,2772.3,3.60709]
[1739795026320,3.6066,2772.7,2772.3,3.60709]
[1739795026650,4.37097,2772.8,2772.3,7.21414]
[1739795026852,4.37097,2772.8,2772.3,3.60705]
[1739795028516,3.60666,2772.7,2772.1,3.60729]
[1739795028715,3.6068,2772.6,2772.1,4.68271003]
[1739795028944,3.60686,2772.5,2772.1,4.68271003]
[1739795030371,4.41108,2772.3,2771.8,3.60775]
[1739795030535,0.8039,2772.3,2771.9,3.60756]
[1739795030730,0.8039,2772.3,2772.0,3.0]
[1739795030969,4.41101,2772.3,2772.0,3.0]
[1739795031167,0.8039,2772.3,2772.0,3.0]
[1739795031377,4.41108,2772.3,2771.9,3.0]
[1739795032170,3.6073,2772.2,2771.6,3.6079]
[1739795032377,0.8039,2772.3,2771.4,3.60821]
[1739795032378,0.7512,2771.8,2771.4,3.60821]
[1739795032873,0.7512,2771.8,2771.5,3.0]
[1739795033053,0.7512,2771.8,2771.5,6.60815]
[1739795033372,0.7512,2771.8,2771.5,6.60813]
[1739795033681,0.7512,2771.8,2771.5,6.60807]
[1739795033852,0.7512,2771.8,2771.6,0.04116458]
[1739795034864,4.43435,2772.0,2771.6,0.70610504]
[1739795035186,0.8268,2772.2,2771.8,3.6077]
[1739795035340,3.6075,2772.0,2771.6,4.31403504]
[1739795035539,3.60741,2772.1,2771.9,0.04165047]
[1739795035750,3.60741,2772.1,2771.6,3.60793]
[1739795035953,3.60741,2772.1,2772.0,0.04164246]
[1739795036155,3.60741,2772.1,2771.6,4.96597203]
[1739795036341,3.60741,2772.1,2772.0,0.04164246]
[1739795036542,3.60741,2772.1,2771.6,3.60793]
[1739795036736,3.60741,2772.1,2772.0,0.04164246]
[1739795036943,0.8268,2772.2,2771.6,0.8208]
[1739795037156,4.43412,2772.2,2772.0,0.04164246]
[1739795037357,4.43412,2772.2,2771.7,3.60782]
[1739795037684,4.43412,2772.2,2771.6,5.14732103]
[1739795037890,3.60744,2772.1,2771.7,0.0416665]
[1739795038247,0.8268,2772.2,2771.7,0.0416665]
[1739795038447,3.60752,2772.0,2771.4,3.6082]
[1739795038688,3.60752,2772.0,2771.5,4.09272252]
[1739795039057,3.60752,2772.0,2771.5,7.09272252]
[1739795039244,3.60764,2771.9,2771.5,7.09272252]
[1739795039681,3.60764,2771.9,2771.5,0.04168252]
[1739795039883,0.7561,2771.8,2771.1,4.1281103]
[1739795040143,4.36362,2772.0,2771.5,3.60809]
[1739795040361,0.7561,2772.0,2771.5,3.60809]
[1739795040555,3.60764,2771.9,2771.6,0.04221023]
[1739795040771,3.60789,2771.7,2771.6,0.04221023]
[1739795040963,3.60764,2771.9,2771.6,0.04221023]
[1739795041181,3.60764,2771.9,2771.4,3.60819]
[1739795041497,4.36372,2772.0,2771.4,3.60819]
[1739795041652,3.60764,2771.9,2771.5,0.40308889]
[1739795042053,3.60777,2771.8,2771.5,0.40308889]
[1739795042290,3.60777,2771.8,2771.5,0.04226989]
[1739795042448,3.60777,2771.8,2771.3,3.60841]
[1739795042654,3.60764,2771.9,2771.4,0.04227791]
[1739795042871,0.7561,2772.0,2771.4,0.04227791]
[1739795043071,0.7561,2772.0,2771.2,3.0]
[1739795043390,3.60789,2771.7,2771.3,0.04228592]
[1739795043751,7.21588,2771.7,2771.3,0.04228592]
[1739795044269,3.60804,2771.6,2771.3,0.04228592]
[1739795045101,7.21589,2771.7,2771.3,0.04228592]
[1739795045301,3.60789,2771.7,2771.3,0.04228592]
[1739795045614,7.21588,2771.7,2771.3,0.04228592]
[1739795045801,4.39769,2771.6,2771.3,0.04228592]
[1739795046002,0.7896,2771.6,2771.3,0.04228592]
[1739795046343,3.60818,2771.5,2771.3,0.04228592]
[1739795046531,3.60795,2771.7,2771.3,0.04228592]
[1739795046842,3.60795,2771.7,2771.2,4.39572]
[1739795047140,3.60795,2771.7,2771.3,0.04116075]
[1739795047541,3.60793,2771.7,2771.3,0.04116075]
[1739795047740,3.60802,2771.6,2771.3,0.04116075]
[1739795048645,3.60817,2771.5,2771.1,3.0]
[1739795048853,3.60817,2771.5,2771.2,0.04120106]
[1739795049347,3.60823,2771.5,2771.2,0.04120106]
[1739795049727,3.60823,2771.5,2771.0,6.9730603]
[1739795050255,3.60823,2771.5,2771.1,0.04120907]
[1739795051146,3.60823,2771.5,2771.1,3.64986907]
[1739795051552,3.60823,2771.5,2771.1,0.04120907]
[1739795051930,3.60823,2771.5,2771.1,3.64985907]
[1739795052326,3.60798,2771.7,2771.2,4.42253]
[1739795052742,3.60798,2771.7,2771.3,0.04130929]
[1739795053260,0.7893,2772.0,2771.5,3.6081]
[1739795053415,4.39686,2772.0,2771.5,3.6081]
[1739795053615,4.39686,2772.0,2771.6,0.04128525]
[1739795054255,3.60763,2771.9,2771.6,0.04128525]
[1739795055020,0.7893,2772.0,2771.6,3.64929525]
[1739795055220,3.60764,2771.9,2771.6,0.04128525]
[1739795055643,3.60764,2771.9,2771.4,3.6082]
[1739795056175,7.21535,2771.9,2771.5,0.04129326]
[1739795056653,3.60764,2771.9,2771.5,0.04129326]
[1739795056858,3.60764,2771.9,2771.5,3.64943326]
[1739795057062,3.60764,2771.9,2771.5,0.04129326]
[1739795058451,3.60782,2771.8,2771.5,0.04129326]
[1739795058639,3.60782,2771.8,2771.3,6.9727003]
[1739795058835,3.60788,2771.8,2771.3,8.22614652]
[1739795059048,3.60788,2771.8,2771.4,0.04128835]
[1739795059827,3.60788,2771.8,2771.4,3.64954835]
[1739795061567,9.39682,2772.0,2771.4,0.04128835]
[1739795061742,3.60777,2771.8,2771.4,3.64950835]
[1739795061947,3.60777,2771.8,2771.4,4.91847584]
[1739795062469,3.60768,2771.9,2771.4,4.91847584]
[1739795063276,3.60768,2771.9,2771.6,1.6811]
[1739795063652,3.60768,2771.9,2771.7,0.04126431]
[1739795066469,9.39682,2772.0,2771.7,0.04126431]
[1739795066662,3.60764,2771.9,2771.7,0.04126431]
[1739795066833,9.39681,2772.0,2771.7,0.04126431]
[1739795067037,3.60765,2771.9,2771.7,0.04126431]
[1739795069687,9.39682,2772.0,2771.7,0.04126431]
[1739795071602,3.60764,2771.9,2771.7,0.04126431]
[1739795072498,3.60776,2771.8,2771.7,0.04126431]
[1739795074010,4.42926,2771.8,2771.7,0.04126431]
[1739795077919,4.97926,2771.8,2771.7,0.04126431]
[1739795078986,3.60789,2771.7,2771.6,1.6811]
[1739795079425,4.94989,2771.7,2771.6,1.6811]
[1739795079601,3.60919,2770.7,2770.6,1.46832727]
[1739795081475,3.60908,2770.8,2770.6,1.46832727]
[1739795081937,3.60919,2770.7,2770.6,1.46832727]
[1739795083331,4.38019,2770.7,2770.6,1.46832727]
[1739795083531,4.99878852,2770.7,2770.6,1.46832727]
[1739795085678,5.7056865,2770.7,2770.6,1.46832727]
[1739795086769,5.7056865,2770.7,2770.6,1.51588102]
[1739795087088,5.7056865,2770.7,2770.6,1.46832727]
[1739795088780,5.7056865,2770.7,2770.6,1.51162372]
[1739795089092,5.7056865,2770.7,2770.6,1.46832727]
[1739795089588,5.7056865,2770.7,2770.6,1.50319177]
[1739795090039,5.7056865,2770.7,2770.6,1.46832727]
[1739795097281,6.2631865,2770.7,2770.6,1.46832727]
[1739795099163,6.2706865,2770.7,2770.6,1.46832727]
[1739795100580,15.3086865,2770.7,2770.6,1.46832727]
[1739795102014,6.2631865,2770.7,2770.6,1.46832727]
[1739795102889,5.7056865,2770.7,2770.6,1.46832727]